fUSD/lending_fUSD_20241207
["ID","MTS","AMOUNT","RATE_DAILY","PERIOD"]
[344557494,1733547059476,-583.35,0.00011518,2]
[344557495,1733547059485,-500.0,0.00011518,2]
[344557496,1733547059498,-500.0,0.00011518,2]
[344557497,1733547059512,-500.0,0.00011518,2]
[344557498,1733547059521,-500.0,0.00011518,2]
[344557499,1733547059531,-540.32,0.00011518,2]
[344557500,1733547059541,-500.0,0.00011518,2]
[344557501,1733547059550,-500.0,0.00011518,2]
[344557502,1733547059559,-500.0,0.00011518,2]
[344557503,1733547059570,-372.48741747,0.00011518,2]
[344557504,1733547059580,-500.0,0.00011518,2]
[344557505,1733547059590,-334.96202573,0.00011519,2]
[344557506,1733547059599,-500.0,0.00011519,2]
[344557507,1733547059609,-500.0,0.00011519,2]
[344557508,1733547059618,-500.0,0.00011519,2]
[344557509,1733547059627,-500.0,0.00011519,2]
[344557510,1733547059636,-500.0,0.00011519,2]
[344557511,1733547059646,-500.0,0.00011519,2]
[344557512,1733547059655,-500.0,0.00011519,2]
[344557513,1733547059664,-500.0,0.00011519,2]
[344557514,1733547059674,-500.0,0.00011519,2]
[344557515,1733547059684,-500.0,0.00011519,2]
[344557516,1733547059693,-500.0,0.00011519,2]
[344557517,1733547059702,-500.0,0.00011519,2]
[344557518,1733547059712,-500.0,0.00011519,2]
[344557519,1733547059721,-533.27,0.00011519,2]
[344557520,1733547059731,-500.0,0.00011565,2]
[344557521,1733547059740,-500.0,0.00011565,2]
[344557522,1733547059749,-500.0,0.00011565,2]
[344557523,1733547059759,-1000.0,0.00011577,2]
[344557524,1733547059768,-500.0,0.000116,4]
[344557525,1733547059778,-427.93892509,0.00011608,2]
[344557526,1733547059787,-200.0,0.00011698,2]
[344557527,1733547059798,-1100.0,0.000117,4]
[344557528,1733547059807,-3242.89942752,0.00011729,2]
[344557529,1733547059816,-200.0,0.00011735,2]
[344557530,1733547059825,-2343.45235096,0.00011739,2]
[344557531,1733547059835,-200.0,0.00011773,2]
[344557532,1733547059844,-500.0,0.0001179,2]
[344557533,1733547059853,-500.0,0.00011791,2]
[344557534,1733547059863,-500.0,0.00011791,2]
[344557535,1733547059873,-501.20694955,0.00011791,2]
[344557536,1733547059882,-500.0,0.00011791,2]
[344557537,1733547059891,-500.0,0.00011791,2]
[344557538,1733547059901,-500.0,0.00011791,2]
[344557539,1733547059911,-772.6,0.00011791,2]
[344557540,1733547059920,-500.0,0.00011791,2]
[344557541,1733547059929,-698.58,0.00011791,2]
[344557542,1733547059939,-501.03,0.00011791,2]
[344557543,1733547059948,-501.21015251,0.00011791,2]
[344557544,1733547059958,-668.35,0.00011791,2]
[344557545,1733547059967,-500.0,0.00011791,2]
[344557546,1733547059977,-500.0,0.00011791,2]
[344557547,1733547059985,-500.0,0.00011791,2]
[344557548,1733547059995,-500.0,0.00011791,2]
[344557549,1733547060004,-500.44903382,0.00011791,2]
[344557550,1733547060014,-500.0,0.00011791,2]
[344557551,1733547060023,-500.0,0.00011791,2]
[344557552,1733547060033,-500.0,0.00011791,2]
[344557553,1733547060044,-500.0,0.00011791,2]
[344557554,1733547060055,-500.0,0.00011791,2]
[344557555,1733547060064,-500.0,0.00011791,2]
[344557556,1733547060074,-500.42719576,0.00011791,2]
[344557557,1733547060083,-633.54,0.00011791,2]
[344557558,1733547060092,-500.0,0.00011791,2]
[344557559,1733547060102,-500.0,0.00011791,2]
[344557560,1733547060112,-500.0,0.00011791,2]
[344557561,1733547060122,-500.0,0.00011791,2]
[344557562,1733547060131,-500.0,0.00011791,2]
[344557563,1733547060141,-500.0,0.00011791,2]
[344557564,1733547060151,-500.0,0.00011791,2]
[344557565,1733547060160,-500.0,0.00011791,2]
[344557566,1733547060170,-500.0,0.00011791,2]
[344557567,1733547060180,-500.0,0.00011791,2]
[344557568,1733547060190,-500.0,0.00011791,2]
[344557569,1733547060200,-747.32,0.00011791,2]
[344557570,1733547060210,-654.98,0.00011791,2]
[344557571,1733547060220,-500.0,0.00011791,2]
[344557572,1733547060230,-543.46,0.00011791,2]
[344557573,1733547060241,-500.0,0.00011791,2]
[344557574,1733547060251,-500.0,0.00011791,2]
[344557575,1733547060262,-500.0,0.00011791,2]
[344557576,1733547060272,-500.0,0.00011791,2]
[344557577,1733547060281,-500.0,0.00011791,2]
[344557578,1733547060293,-500.0,0.00011791,2]
[344557579,1733547060302,-500.0,0.00011791,2]
[344557580,1733547060312,-500.0,0.00011791,2]
[344557581,1733547060322,-500.0,0.00011791,2]
[344557582,1733547060331,-500.0,0.00011791,2]
[344557583,1733547060341,-500.0,0.00011791,2]
[344557584,1733547060351,-500.0,0.00011791,2]
[344557585,1733547060360,-500.0,0.00011791,2]
[344557586,1733547060370,-500.0,0.00011791,2]
[344557587,1733547060379,-500.0,0.00011791,2]
[344557588,1733547060389,-500.0,0.00011791,2]
[344557589,1733547060398,-500.0,0.00011791,2]
[344557590,1733547060407,-500.0,0.00011791,2]
[344557591,1733547060417,-500.0,0.00011791,2]
[344557592,1733547060426,-500.0,0.00011791,2]
[344557593,1733547060594,-500.0,0.00011791,2]
[344557594,1733547060605,-500.0,0.00011791,2]
[344557595,1733547060614,-500.0,0.00011791,2]
[344557596,1733547060623,-500.0,0.00011791,2]
[344557597,1733547060632,-500.0,0.00011791,2]
[344557598,1733547060641,-500.0,0.00011791,2]
[344557599,1733547060650,-500.0,0.00011791,2]
[344557600,1733547060659,-543.06,0.00011791,2]
[344557601,1733547060668,-500.0,0.00011791,2]
[344557602,1733547060678,-500.0,0.00011791,2]
[344557603,1733547060686,-500.0,0.00011791,2]
[344557604,1733547060695,-500.0,0.00011791,2]
[344557605,1733547060704,-500.0,0.00011791,2]
[344557606,1733547060713,-500.0,0.00011791,2]
[344557607,1733547060722,-500.0,0.00011791,2]
[344557608,1733547060731,-500.0,0.00011791,2]
[344557609,1733547060740,-500.0,0.00011791,2]
[344557610,1733547060749,-500.0,0.00011791,2]
[344557611,1733547060759,-500.0,0.00011791,2]
[344557612,1733547060768,-500.0,0.00011791,2]
[344557613,1733547060777,-1374.42,0.00011791,2]
[344557614,1733547060786,-500.0,0.00011791,2]
[344557615,1733547060797,-500.0,0.00011791,2]
[344557616,1733547060806,-807.67,0.00011791,2]
[344557617,1733547060815,-500.0,0.00011791,2]
[344557618,1733547060824,-500.0,0.00011791,2]
[344557619,1733547060834,-500.0,0.00011791,2]
[344557620,1733547060843,-500.0,0.00011791,2]
[344557621,1733547060852,-500.0,0.00011791,2]
[344557622,1733547060861,-500.0,0.00011791,2]
[344557623,1733547060870,-500.0,0.00011791,2]
[344557624,1733547060879,-590.86,0.00011791,2]
[344557625,1733547060889,-500.0,0.00011791,2]
[344557626,1733547060898,-240.26229361,0.00011791,2]
[344557627,1733547060907,-500.0,0.00011791,2]
[344557628,1733547060916,-500.0,0.00011791,2]
[344557629,1733547060926,-509.88,0.00011791,2]
[344557630,1733547060935,-504.47714202,0.00011791,2]
[344557631,1733547060943,-500.0,0.00011791,2]
[344557632,1733547060952,-500.0,0.00011791,2]
[344557633,1733547060961,-500.0,0.00011791,2]
[344557634,1733547060970,-551.04,0.00011791,2]
[344557635,1733547060979,-500.0,0.00011791,2]
[344557636,1733547060988,-1032.57,0.00011791,2]
[344557637,1733547060997,-556.51,0.00011791,2]
[344557638,1733547061006,-500.0,0.00011791,2]
[344557639,1733547061015,-500.0,0.00011791,2]
[344557640,1733547061024,-559.13706334,0.00011791,2]
[344557641,1733547061033,-500.0,0.00011791,2]
[344557642,1733547061044,-762.57,0.00011791,2]
[344557643,1733547061053,-500.0,0.00011791,2]
[344557644,1733547061062,-260.66,0.00011791,2]
[344557645,1733547061071,-500.0,0.00011791,2]
[344557646,1733547061080,-500.0,0.00011791,2]
[344557647,1733547061089,-500.0,0.00011791,2]
[344557648,1733547061099,-500.0,0.00011791,2]
[344557649,1733547061107,-500.0,0.00011791,2]
[344557650,1733547061117,-315.3812816,0.00011791,2]
[344557651,1733547061126,-500.0,0.00011791,2]
[344557652,1733547061135,-500.0,0.00011791,2]
[344557653,1733547061144,-515.03,0.00011791,2]
[344557654,1733547061153,-500.0,0.00011791,2]
[344557655,1733547061162,-500.0,0.00011791,2]
[344557656,1733547061171,-611.22,0.00011791,2]
[344557657,1733547061181,-380.77242764,0.00011791,2]
[344557658,1733547061190,-500.0,0.00011791,2]
[344557659,1733547061199,-1805.97,0.00011791,2]
[344557660,1733547061208,-500.0,0.00011791,2]
[344557661,1733547061218,-500.0,0.00011791,2]
[344557662,1733547061227,-869.99,0.00011791,2]
[344557663,1733547061236,-500.0,0.00011791,2]
[344557664,1733547061245,-560.38987642,0.00011791,2]
[344557665,1733547061254,-500.0,0.00011791,2]
[344557666,1733547061263,-1187.71,0.00011791,2]
[344557667,1733547061272,-500.0,0.00011791,2]
[344557668,1733547061281,-855.2,0.00011791,2]
[344557669,1733547061290,-1356.41,0.00011791,2]
[344557670,1733547061305,-500.0,0.00011791,2]
[344557671,1733547061314,-500.0,0.00011791,2]
[344557672,1733547061323,-500.0,0.00011791,2]
[344557673,1733547061332,-500.0,0.00011791,2]
[344557674,1733547061342,-500.0,0.00011791,2]
[344557675,1733547061351,-500.0,0.00011791,2]
[344557676,1733547061361,-500.0,0.00011791,2]
[344557677,1733547061370,-500.0,0.00011791,2]
[344557678,1733547061379,-1238.28,0.00011791,2]
[344557679,1733547061388,-500.0,0.00011791,2]
[344557680,1733547061398,-1637.84,0.00011791,2]
[344557681,1733547061407,-1234.06,0.00011791,2]
[344557682,1733547061417,-500.0,0.00011791,2]
[344557683,1733547061426,-500.0,0.00011791,2]
[344557684,1733547061435,-500.0,0.00011791,2]
[344557685,1733547061445,-500.0,0.00011791,2]
[344557686,1733547061454,-610.56,0.00011791,2]
[344557687,1733547061463,-500.0,0.00011791,2]
[344557688,1733547061473,-500.0,0.00011791,2]
[344557689,1733547061482,-500.0,0.00011791,2]
[344557690,1733547061492,-500.0,0.00011791,2]
[344557691,1733547061504,-500.0,0.00011791,2]
[344557692,1733547061513,-500.0,0.00011791,2]
[344557693,1733547061522,-500.0,0.00011791,2]
[344557694,1733547061532,-500.0,0.00011791,2]
[344557695,1733547061547,-500.0,0.00011791,2]
[344557696,1733547061558,-500.0,0.00011791,2]
[344557697,1733547061567,-646.89,0.00011791,2]
[344557698,1733547061579,-500.0,0.00011791,2]
[344557699,1733547061588,-538.23,0.00011791,2]
[344557700,1733547061597,-606.50419366,0.00011791,2]
[344557701,1733547061606,-500.0,0.00011791,2]
[344557702,1733547061615,-500.0,0.00011791,2]
[344557703,1733547061624,-977.31,0.00011791,2]
[344557704,1733547061634,-500.0,0.00011791,2]
[344557705,1733547061643,-500.0,0.00011791,2]
[344557706,1733547061652,-500.0,0.00011791,2]
[344557707,1733547061661,-500.0,0.00011791,2]
[344557708,1733547061671,-500.0,0.00011791,2]
[344557709,1733547061680,-500.0,0.00011791,2]
[344557710,1733547061689,-500.0,0.00011791,2]
[344557711,1733547061698,-685.71,0.00011791,2]
[344557712,1733547061707,-500.0,0.00011791,2]
[344557713,1733547061719,-570.85077175,0.00011791,2]
[344557714,1733547061729,-500.0,0.00011791,2]
[344557715,1733547061737,-500.0,0.00011791,2]
[344557716,1733547061747,-500.0,0.00011791,2]
[344557717,1733547061757,-500.0,0.00011791,2]
[344557718,1733547061767,-500.0,0.00011791,2]
[344557719,1733547061776,-500.0,0.00011791,2]
[344557720,1733547061785,-1794.36,0.00011791,2]
[344557721,1733547061796,-500.0,0.00011791,2]
[344557722,1733547061805,-500.0,0.00011791,2]
[344557723,1733547061815,-644.84,0.00011791,2]
[344557724,1733547061825,-500.0,0.00011791,2]
[344557725,1733547061834,-500.0,0.00011791,2]
[344557726,1733547061845,-500.0,0.00011791,2]
[344557727,1733547061855,-579.17,0.00011791,2]
[344557728,1733547061864,-500.0,0.00011791,2]
[344557729,1733547061874,-744.79,0.00011791,2]
[344557730,1733547061884,-508.32880954,0.00011791,2]
[344557731,1733547061894,-500.0,0.00011791,2]
[344557732,1733547061903,-739.28,0.00011791,2]
[344557733,1733547061911,-500.0,0.00011791,2]
[344557734,1733547061920,-500.0,0.00011791,2]
[344557735,1733547061929,-500.0,0.00011791,2]
[344557736,1733547061939,-500.0,0.00011791,2]
[344557737,1733547061948,-500.0,0.00011791,2]
[344557738,1733547061956,-500.0,0.00011791,2]
[344557739,1733547061966,-500.0,0.00011791,2]
[344557740,1733547061975,-1137.16,0.00011791,2]
[344557741,1733547061984,-500.0,0.00011791,2]
[344557742,1733547061993,-500.0,0.00011791,2]
[344557743,1733547062002,-500.0,0.00011791,2]
[344557744,1733547062012,-563.41,0.00011791,2]
[344557745,1733547062021,-2195.38,0.00011791,2]
[344557746,1733547062030,-500.0,0.00011791,2]
[344557747,1733547062039,-500.0,0.00011791,2]
[344557748,1733547062050,-500.0,0.00011791,2]
[344557749,1733547062059,-458.67320968,0.00011791,2]
[344557750,1733547062068,-3114.51,0.00011791,2]
[344557751,1733547062077,-500.0,0.00011791,2]
[344557752,1733547062087,-500.0,0.00011791,2]
[344557753,1733547062097,-500.0,0.00011791,2]
[344557754,1733547062105,-724.49,0.00011791,2]
[344557755,1733547062115,-500.0,0.00011791,2]
[344557756,1733547062125,-500.0,0.00011791,2]
[344557757,1733547062134,-500.0,0.00011791,2]
[344557758,1733547062144,-589.3,0.00011791,2]
[344557759,1733547062154,-3920.4,0.00011791,2]
[344557760,1733547062163,-589.1,0.00011791,2]
[344557761,1733547062173,-500.0,0.00011791,2]
[344557762,1733547062183,-921.77,0.00011791,2]
[344557763,1733547062192,-1275.38,0.00011791,2]
[344557764,1733547062202,-500.0,0.00011791,2]
[344557765,1733547062212,-500.0,0.00011791,2]
[344557766,1733547062221,-4256.8,0.00011791,2]
[344557767,1733547062231,-759.67,0.00011791,2]
[344557768,1733547062240,-520.58,0.00011791,2]
[344557769,1733547062250,-1260.21,0.00011791,2]
[344557770,1733547062259,-500.0,0.00011791,2]
[344557771,1733547062268,-500.0,0.00011791,2]
[344557772,1733547062278,-500.0,0.00011791,2]
[344557773,1733547062287,-256.01242486,0.00011791,2]
[344557774,1733547062299,-500.0,0.00011791,2]
[344557775,1733547062308,-500.0,0.00011791,2]
[344557776,1733547062318,-759.07,0.00011791,2]
[344557777,1733547062327,-500.0,0.00011791,2]
[344557778,1733547062337,-624.98,0.00011791,2]
[344557779,1733547062347,-500.0,0.00011791,2]
[344557780,1733547062356,-500.0,0.00011791,2]
[344557781,1733547062366,-2997.94,0.00011791,2]
[344557782,1733547062376,-3.23037856,0.00011791,2]
[344557784,1733547641777,150.0,5.01e-05,5]
[344557785,1733547777692,317.56633866,4.985e-05,2]
[344557795,1733548231512,-200.0,7.678e-05,2]
[344557796,1733548231522,-755.4365745,7.679e-05,2]
[344557797,1733548231532,-239.02485365,7.679e-05,2]
[344557798,1733548231541,-200.0,7.679e-05,2]
[344557799,1733548231550,-200.0,7.679e-05,2]
[344557800,1733548231559,-200.0,7.679e-05,2]
[344557801,1733548231569,-200.0,7.679e-05,2]
[344557802,1733548231578,-239.02485365,7.681e-05,2]
[344557803,1733548231587,-200.0,7.681e-05,2]
[344557804,1733548231596,-200.0,7.681e-05,2]
[344557805,1733548231605,-200.0,7.682e-05,2]
[344557806,1733548231614,-1007.248766,7.682e-05,2]
[344557807,1733548231624,-755.4365745,7.682e-05,2]
[344557808,1733548231633,-566.57743087,7.683e-05,2]
[344557809,1733548231642,-239.02485365,7.684e-05,2]
[344557810,1733548231651,-200.0,7.684e-05,2]
[344557811,1733548231660,-318.69980487,7.684e-05,2]
[344557812,1733548231670,-424.93307316,7.685e-05,2]
[344557813,1733548231679,-318.69980487,7.686e-05,2]
[344557814,1733548231688,-1007.248766,7.686e-05,2]
[344557815,1733548231697,-200.0,7.686e-05,2]
[344557816,1733548231706,-318.69980487,7.686e-05,2]
[344557817,1733548231716,-755.4365745,7.687e-05,2]
[344557818,1733548231729,-424.93307316,7.687e-05,2]
[344557819,1733548231739,-424.93307316,7.687e-05,2]
[344557820,1733548231748,-200.0,7.687e-05,2]
[344557821,1733548231758,-755.4365745,7.687e-05,2]
[344557822,1733548231768,-318.69980487,7.688e-05,2]
[344557823,1733548231778,-239.02485365,7.688e-05,2]
[344557824,1733548231787,-200.0,7.689e-05,2]
[344557825,1733548231797,-479.08088557,7.689e-05,2]
[344557826,1733548231810,-528.16788043,7.689e-05,2]
[344557827,1733548231819,-200.0,7.689e-05,2]
[344557828,1733548231829,-424.93307316,7.689e-05,2]
[344557829,1733548231838,-64.36342516,7.689e-05,2]
[344557834,1733548231934,-502.21400571,7.689e-05,2]
[344557835,1733548231943,-424.93307316,7.69e-05,2]
[344557836,1733548231952,-318.69980487,7.69e-05,2]
[344557837,1733548231962,-257.37737153,7.691e-05,2]
[344557838,1733548231995,-309.20005934,7.691e-05,2]
[344557839,1733548232004,-9.86095435,7.691e-05,2]
[344557845,1733548239647,-190.13904565,7.691e-05,2]
[344557846,1733548239657,-100.91935621,7.692e-05,2]
[344557847,1733548239705,-906.32940979,7.692e-05,2]
[344557848,1733548239715,-93.32225164,7.693e-05,2]
[344557851,1733548242588,-145.70260201,7.693e-05,2]
[344557852,1733548242599,-424.93307316,7.693e-05,2]
[344557853,1733548242608,-192.49276338,7.695e-05,2]
[344557854,1733548242651,-7.50723662,7.695e-05,2]
[344557855,1733548242661,-566.57743087,7.696e-05,2]
[344557856,1733548242671,-755.4365745,7.697e-05,2]
[344557857,1733548242681,-200.0,7.697e-05,2]
[344557858,1733548242690,-1007.248766,7.697e-05,2]
[344557859,1733548242699,-755.4365745,7.697e-05,2]
[344557860,1733548242709,-239.02485365,7.698e-05,2]
[344557861,1733548242719,-318.69980487,7.699e-05,2]
[344557862,1733548242728,-200.0,7.699e-05,2]
[344557863,1733548242739,-566.57743087,7.699e-05,2]
[344557864,1733548242749,-200.0,7.699e-05,2]
[344557865,1733548242759,-566.57743087,7.699e-05,2]
[344557866,1733548242768,-1007.248766,7.699e-05,2]
[344557867,1733548242778,-1596.47,8.219e-05,2]
[344557868,1733548242787,-442.74,9.528e-05,2]
[344557869,1733548242796,-250.0,9.547e-05,2]
[344557870,1733548242806,-1000.0,9.55e-05,2]
[344557871,1733548242815,-150.0,9.6e-05,2]
[344557872,1733548242825,-250.0,9.602e-05,2]
[344557873,1733548242835,-250.0,9.602e-05,2]
[344557874,1733548242844,-1128.85227155,9.616e-05,2]
[344557875,1733548242855,-9197.67373203,9.616e-05,2]
[344557876,1733548242881,-13573.47399642,9.616e-05,2]
[344557877,1733548242896,-420.68319909,9.621e-05,2]
[344557878,1733548242907,-172.33910785,9.621e-05,2]
[344557879,1733548242917,-503.31,9.832e-05,2]
[344557880,1733548242926,-502.99,9.895e-05,2]
[344557881,1733548242937,-508.24,9.976e-05,2]
[344557882,1733548242947,-508.64,0.00010054,2]
[344557883,1733548242956,-509.45,0.00010065,2]
[344557884,1733548242966,-498.92,0.00010082,2]
[344557885,1733548242976,-495.09,0.00010104,2]
[344557886,1733548242986,-490.72,0.00010149,2]
[344557887,1733548242997,-150.0,0.00010235,2]
[344557888,1733548243007,-499.35,0.00010238,2]
[344557889,1733548243017,-495.87,0.00010312,2]
[344557890,1733548243027,-492.17,0.00010312,2]
[344557891,1733548243037,-503.84,0.00010313,2]
[344557892,1733548243047,-498.74,0.00010314,2]
[344557893,1733548243057,-509.1,0.00010315,2]
[344557894,1733548243067,-494.47,0.00010319,2]
[344557895,1733548243077,-508.44,0.00010328,2]
[344557896,1733548243087,-509.78,0.00010339,2]
[344557897,1733548243098,-507.27,0.00010354,2]
[344557898,1733548243108,-497.33,0.00010373,2]
[344557899,1733548243118,-495.21,0.00010399,2]
[344557900,1733548243128,-508.16,0.00010431,2]
[344557901,1733548243138,-946.28941817,0.00010451,2]
[344557902,1733548243150,-650.18058183,0.00010451,2]
[344557903,1733548243160,-405.13,0.00010467,2]
[344557904,1733548243170,-1.94449905,0.00010474,2]
[344557905,1733548243181,-493.91550095,0.00010474,2]
[344557906,1733548243191,-509.82,0.00010528,2]
[344557907,1733548243200,-200.0,0.00010551,2]
[344557908,1733548243210,-441.78426063,0.00010599,2]
[344557910,1733548245694,-65.13573937,0.00010599,2]
[344557911,1733548245704,-442.74,0.00010718,2]
[344557912,1733548245714,-1000.0,0.00010744,2]
[344557913,1733548245723,-150.0,0.00010959,2]
[344557914,1733548245734,-1000.0,0.00011143,2]
[344557915,1733548245744,-519.091,0.000112,2]
[344557916,1733548245754,-172.33910785,0.00011211,2]
[344557917,1733548245763,-516.51,0.00011242,2]
[344557918,1733548245774,-500.0,0.00011242,2]
[344557919,1733548245784,-500.0,0.00011242,2]
[344557920,1733548245794,-500.0,0.00011242,2]
[344557921,1733548245803,-500.0,0.00011242,2]
[344557922,1733548245813,-500.0,0.00011242,2]
[344557923,1733548245823,-553.23,0.00011242,2]
[344557924,1733548245832,-500.0,0.00011242,2]
[344557925,1733548245841,-500.0,0.00011242,2]
[344557926,1733548245850,-500.0,0.00011242,2]
[344557927,1733548245859,-500.0,0.00011242,2]
[344557928,1733548245869,-109.98025647,0.00011242,2]
[344557929,1733548245881,-390.01974353,0.00011242,2]
[344557930,1733548245892,-500.0,0.00011242,2]
[344557931,1733548245902,-500.0,0.00011242,2]
[344557932,1733548245912,-500.0,0.00011242,2]
[344557933,1733548245921,-500.0,0.00011242,2]
[344557934,1733548245932,-500.0,0.00011242,2]
[344557935,1733548245942,-500.0,0.00011242,2]
[344557936,1733548245951,-500.0,0.00011242,2]
[344557937,1733548245961,-500.0,0.00011242,2]
[344557938,1733548245972,-500.0,0.00011242,2]
[344557939,1733548245982,-85.50961961,0.00011242,2]
[344557940,1733548246001,-414.49038039,0.00011242,2]
[344557941,1733548246011,-500.0,0.00011242,2]
[344557942,1733548246020,-500.0,0.00011242,2]
[344557943,1733548246030,-500.0,0.00011242,2]
[344557944,1733548246039,-564.55,0.00011242,2]
[344557945,1733548246048,-589.09,0.00011242,2]
[344557946,1733548246058,-500.0,0.00011242,2]
[344557947,1733548246067,-500.0,0.00011242,2]
[344557948,1733548246076,-669.64,0.00011242,2]
[344557949,1733548246086,-500.0,0.00011242,2]
[344557950,1733548246095,-500.0,0.00011242,2]
[344557951,1733548246104,-500.0,0.00011242,2]
[344557952,1733548246114,-500.0,0.00011242,2]
[344557953,1733548246123,-500.0,0.00011242,2]
[344557954,1733548246132,-500.0,0.00011242,2]
[344557955,1733548246142,-500.0,0.00011242,2]
[344557956,1733548246152,-500.0,0.00011242,2]
[344557957,1733548246161,-570.22,0.00011242,2]
[344557958,1733548246171,-500.0,0.00011242,2]
[344557959,1733548246180,-500.0,0.00011242,2]
[344557960,1733548246189,-873.65,0.00011242,2]
[344557961,1733548246199,-500.0,0.00011242,2]
[344557962,1733548246208,-500.0,0.00011242,2]
[344557963,1733548246218,-500.0,0.00011242,2]
[344557964,1733548246227,-500.0,0.00011242,2]
[344557965,1733548246237,-500.0,0.00011242,2]
[344557966,1733548246247,-500.0,0.00011242,2]
[344557967,1733548246257,-500.0,0.00011242,2]
[344557968,1733548246266,-622.4,0.00011242,2]
[344557969,1733548246275,-500.0,0.00011242,2]
[344557970,1733548246285,-500.0,0.00011242,2]
[344557971,1733548246294,-500.0,0.00011242,2]
[344557972,1733548246304,-500.0,0.00011242,2]
[344557973,1733548246313,-717.06,0.00011242,2]
[344557974,1733548246323,-579.87,0.00011242,2]
[344557975,1733548246332,-534.74,0.00011242,2]
[344557976,1733548246342,-500.0,0.00011242,2]
[344557977,1733548246351,-500.0,0.00011242,2]
[344557978,1733548246360,-207.12623076,0.00011242,2]
[344557979,1733548246380,-292.87376924,0.00011242,2]
[344557980,1733548246389,-500.0,0.00011242,2]
[344557981,1733548246398,-500.0,0.00011242,2]
[344557982,1733548246407,-500.0,0.00011242,2]
[344557983,1733548246417,-500.0,0.00011242,2]
[344557984,1733548246426,-275.12623176,0.00011242,2]
[344557988,1733548976735,300.66,0.0001901,120]
[344557999,1733549431779,-200.0,7.678e-05,2]
[344558000,1733549431789,-200.0,7.683e-05,2]
[344558001,1733549431799,-200.0,7.689e-05,2]
[344558002,1733549431809,-200.0,7.694e-05,2]
[344558003,1733549431818,-200.0,7.696e-05,2]
[344558004,1733549431828,-1436.82,8.76e-05,2]
[344558005,1733549431838,-172.33910785,0.00010371,2]
[344558006,1733549431848,-324.1,0.00010407,2]
[344558007,1733549431857,-250.0,0.00010439,2]
[344558008,1733549431866,-250.0,0.00010442,2]
[344558009,1733549431875,-300.0,0.00010447,2]
[344558010,1733549431885,-2467.16969148,0.00010448,2]
[344558011,1733549431914,-708.7217319,0.00010448,2]
[344558012,1733549431926,-355.42485917,0.00010448,2]
[344558013,1733549431937,-493.8,0.00010448,2]
[344558014,1733549431948,-711.47500005,0.00010448,2]
[344558015,1733549431959,-874.46424162,0.00010448,2]
[344558016,1733549431970,-1198.4,0.00010448,2]
[344558017,1733549431981,-929.64434,0.00010448,2]
[344558018,1733549431999,-658.25035671,0.00010448,2]
[344558019,1733549432010,-3093.51452699,0.00010448,2]
[344558054,1733549437814,-2300.5,0.00010448,2]
[344558072,1733549439592,-450.09194922,0.00010448,2]
[344558073,1733549439710,-9658.54330286,0.00010448,2]
[344558074,1733549439721,-125.98560751,0.00010471,2]
[344558075,1733549439732,-300.0,0.00010471,2]
[344558076,1733549439780,-497.46,0.00010471,2]
[344558077,1733549439847,-76.55439249,0.00010471,2]
[344558078,1733549439857,-250.0,0.00010476,2]
[344558079,1733549439866,-150.0,0.00010577,2]